bitfinex/quotes_BTCUSD_20251201
["timestamp","ask_amount","ask_price","bid_price","bid_amount"]
[1764609373851,0.323,84641.0,84640.0,0.0092]
[1764609374056,0.5592921,84641.0,84640.0,0.0022]
[1764609374260,0.323,84641.0,84640.0,0.0102]
[1764609374663,0.323,84641.0,84640.0,0.0032]
[1764609374858,0.324,84641.0,84640.0,0.0112]
[1764609375084,2.5602921,84641.0,84640.0,0.01149559]
[1764609375447,2.5602921,84641.0,84640.0,0.01049559]
[1764609375846,2.5602921,84641.0,84640.0,0.01149559]
[1764609376247,2.5602921,84641.0,84640.0,0.01049559]
[1764609377069,2.5602921,84641.0,84640.0,0.00249559]
[1764609377070,0.62181509,84641.0,84640.0,0.00249559]
[1764609377270,2.62281509,84641.0,84640.0,0.00749559]
[1764609379016,2.64814858,84641.0,84640.0,0.00749559]
[1764609380858,2.001,84641.0,84640.0,0.00749559]
[1764609381022,2.2372921,84641.0,84640.0,0.00749559]
[1764609381223,0.001,84641.0,84640.0,0.00749559]
[1764609382610,0.001,84641.0,84640.0,0.24379048]
[1764609382809,0.001,84641.0,84640.0,0.03423768]
[1764609383058,0.001,84641.0,84640.0,0.27053257]
[1764609383369,0.323,84648.0,84640.0,0.02923768]
[1764609383577,0.001,84641.0,84640.0,0.03294209]
[1764609383887,0.323,84648.0,84641.0,0.0118146]
[1764609384084,0.00011641,84663.0,84652.0,0.01181306]
[1764609384301,0.00011641,84663.0,84662.0,0.23623349]
[1764609384524,0.00011641,84663.0,84657.0,0.01181237]
[1764609384761,0.00011641,84663.0,84640.0,0.01819999]
[1764609384957,0.67555831,84660.0,84644.0,0.23628181]
[1764609385156,0.67555831,84660.0,84647.0,0.01181376]
[1764609385295,0.67555831,84660.0,84646.0,0.0118139]
[1764609385497,0.323,84659.0,84643.0,0.01181432]
[1764609385697,0.323,84659.0,84644.0,0.01181418]
[1764609385913,0.323,84659.0,84647.0,0.24808911]
[1764609386088,0.323,84659.0,84651.0,0.0118132]
[1764609386279,0.323,84659.0,84652.0,0.003]
[1764609386488,0.323,84659.0,84656.0,0.23624982]
[1764609386743,0.00011641,84663.0,84656.0,0.01181251]
[1764609386955,0.00011641,84663.0,84655.0,0.01181265]
[1764609387157,0.00011641,84663.0,84656.0,0.02598924]
[1764609387344,0.00011641,84663.0,84652.0,0.01181306]
[1764609387489,0.001,84659.0,84652.0,0.25307383]
[1764609387843,0.323,84661.0,84653.0,0.25956603]
[1764609388082,0.323,84661.0,84655.0,0.005]
[1764609388431,0.323,84661.0,84655.0,0.01681265]
[1764609388638,0.00111641,84663.0,84655.0,0.005]
[1764609389359,0.00011641,84663.0,84649.0,0.24808297]
[1764609389561,0.00011641,84663.0,84654.0,0.01181279]
[1764609389722,0.00011641,84663.0,84647.0,0.0233091]
[1764609389919,0.323,84659.0,84651.0,0.0118132]
[1764609390151,0.323,84659.0,84655.0,0.003]
[1764609390321,0.323,84659.0,84654.0,0.23625565]
[1764609390502,0.323,84659.0,84654.0,0.01181279]
[1764609390709,0.323,84659.0,84655.0,0.24806565]
[1764609390948,0.00011641,84663.0,84653.0,0.01149534]
[1764609391151,0.00011641,84663.0,84657.0,0.01181237]
[1764609391349,0.00011641,84663.0,84661.0,0.2477302]
[1764609391602,0.00011641,84663.0,84661.0,0.01149534]
[1764609391818,0.00011641,84663.0,84662.0,0.24772883]
[1764609392968,0.00011641,84663.0,84662.0,0.23623349]
[1764609393168,0.00011641,84663.0,84662.0,0.35757174]
[1764609393365,0.00011641,84663.0,84662.0,0.36257174]
[1764609393822,0.00011641,84663.0,84662.0,0.35757174]
[1764609394074,0.00111641,84663.0,84662.0,0.36457174]
[1764609394539,0.00011641,84663.0,84662.0,0.35757174]
[1764609395111,0.00011641,84663.0,84662.0,0.35857174]
[1764609395537,0.00011641,84663.0,84662.0,0.35757174]
[1764609395741,0.00111641,84663.0,84662.0,0.36357174]
[1764609395935,0.00011641,84663.0,84662.0,0.35757174]
[1764609396340,0.00111641,84663.0,84662.0,0.36357174]
[1764609396589,0.00111641,84663.0,84662.0,0.22857174]
[1764609396941,0.00011641,84663.0,84662.0,0.22357174]
[1764609397464,0.00111641,84663.0,84662.0,0.29209473]
[1764609397863,0.00111641,84663.0,84662.0,0.29309473]
[1764609398260,0.00111641,84663.0,84662.0,0.72809939]
[1764609398457,0.00148158,84679.0,84678.0,0.31020718]
[1764609398655,0.00148158,84679.0,84678.0,0.52067469]
[1764609399145,0.00148158,84679.0,84678.0,0.84367469]
[1764609399332,1e-08,84679.0,84678.0,0.84367469]
[1764609399470,1e-08,84679.0,84678.0,0.84967469]
[1764609399679,1e-08,84679.0,84678.0,1.24967469]
[1764609399880,1e-08,84679.0,84678.0,1.24367469]
[1764609400122,1e-08,84679.0,84678.0,1.34293803]
[1764609400531,0.0004,84730.0,84724.0,0.01180303]
[1764609400854,0.0004,84730.0,84725.0,0.0470968]
[1764609400855,0.00079059,84730.0,84725.0,0.0470968]
[1764609401170,0.00079059,84730.0,84728.0,0.23604881]
[1764609401320,0.00079059,84730.0,84729.0,0.01149534]
[1764609401519,0.00079059,84730.0,84728.0,0.23604881]
[1764609401720,0.00079059,84730.0,84729.0,0.01149534]
[1764609402086,0.00079059,84730.0,84729.0,0.0188]
[1764609402299,0.00079059,84730.0,84728.0,0.004]
[1764609402491,0.00079059,84730.0,84729.0,0.0188]
[1764609402816,0.00079059,84730.0,84729.0,0.0228]
[1764609403238,0.00079059,84730.0,84729.0,0.0188]
[1764609403467,0.00079059,84730.0,84729.0,0.03029534]
[1764609403671,0.00079059,84730.0,84729.0,0.11898632]
[1764609404100,0.00079059,84730.0,84729.0,0.11998632]
[1764609404753,0.00079059,84730.0,84729.0,0.08969098]
[1764609404977,0.00079059,84730.0,84729.0,0.12398632]
[1764609405129,0.00079059,84730.0,84729.0,0.11998632]
[1764609405515,0.00079059,84730.0,84729.0,0.12498632]
[1764609405850,0.00079059,84730.0,84729.0,0.11898632]
[1764609406056,0.00079059,84730.0,84729.0,0.10018632]
[1764609406233,0.00079059,84730.0,84729.0,0.12598632]
[1764609406432,0.00079059,84730.0,84729.0,0.11998632]
[1764609406681,0.00246334,84730.0,84729.0,0.11898632]
[1764609407066,0.00246334,84730.0,84729.0,0.18250931]
[1764609407447,0.00246334,84730.0,84729.0,0.16270931]
[1764609407649,0.323,84766.0,84741.0,0.23601174]
[1764609407853,0.67555831,84760.0,84744.0,0.01180024]
[1764609408338,0.32311714,84766.0,84744.0,0.01180024]
[1764609408339,0.32311714,84766.0,84748.0,0.01179968]
[1764609408541,0.00011714,84766.0,84758.0,0.23596329]
[1764609408697,0.00011714,84766.0,84764.0,0.23594707]
[1764609408855,0.00011714,84766.0,84765.0,0.02901408]
[1764609409058,0.00011714,84766.0,84765.0,0.04050942]
[1764609409552,0.00129705,84766.0,84765.0,0.04050942]
[1764609410747,0.00129705,84766.0,84765.0,0.03001408]
[1764609410955,0.00129705,84766.0,84765.0,0.001]
[1764609411157,0.00129705,84766.0,84765.0,0.0188]
[1764609411563,0.00129705,84766.0,84755.0,0.23597267]
[1764609411740,0.00011714,84766.0,84765.0,0.003]
[1764609412484,0.00011714,84766.0,84765.0,0.001]
[1764609412659,0.00011714,84766.0,84765.0,0.02587596]
[1764609412859,0.00129705,84766.0,84759.0,0.01179815]
[1764609413063,0.00129705,84766.0,84757.0,0.35881278]
[1764609413064,0.00011714,84766.0,84760.0,0.01149534]
[1764609413268,0.00011714,84766.0,84765.0,0.001]
[1764609413491,0.00011714,84766.0,84765.0,0.003]
[1764609413692,0.00129705,84766.0,84765.0,0.002]
[1764609414039,0.00129705,84766.0,84765.0,0.01349534]
[1764609414280,0.00129705,84766.0,84765.0,0.002]
[1764609414479,0.00129705,84766.0,84765.0,0.0188]
[1764609414678,0.00129705,84766.0,84765.0,0.30735584]
[1764609415340,0.00129705,84766.0,84765.0,0.31885118]
[1764609416228,0.00129705,84766.0,84765.0,0.32285118]
[1764609416446,0.00129705,84766.0,84765.0,0.30477908]
[1764609416839,0.00129705,84766.0,84765.0,0.30377908]
[1764609417177,0.00129705,84766.0,84765.0,0.30477908]
[1764609417379,0.00129705,84766.0,84765.0,0.29328374]
[1764609417560,0.00129705,84766.0,84765.0,0.30477908]
[1764609417871,0.00129705,84766.0,84765.0,0.30977908]
[1764609418021,0.00129705,84766.0,84765.0,0.29328374]
[1764609418232,0.00129705,84766.0,84765.0,0.31077908]
[1764609418437,0.00129705,84766.0,84765.0,0.30977908]
[1764609418634,0.00129705,84766.0,84765.0,0.30477908]
[1764609418958,0.00129705,84766.0,84765.0,0.37330207]
[1764609419170,0.00129705,84766.0,84765.0,0.36630207]
[1764609419540,0.00129705,84766.0,84765.0,0.37330207]
[1764609419942,0.00129705,84766.0,84765.0,0.37230207]
[1764609420300,0.00129705,84766.0,84765.0,1.09730207]
[1764609420892,0.00129705,84766.0,84765.0,1.06100673]
[1764609421038,0.00129705,84766.0,84765.0,0.002]
[1764609421238,0.00129705,84766.0,84765.0,0.01]
[1764609421481,0.00129705,84766.0,84755.0,0.12984617]
[1764609421482,0.00129705,84766.0,84764.0,0.23594761]
[1764609421638,0.00011714,84766.0,84764.0,0.23594761]
[1764609421841,0.00011714,84766.0,84765.0,0.01]
[1764609422048,0.00011714,84766.0,84765.0,0.08779004]
[1764609422247,0.00011714,84766.0,84765.0,0.08679004]
[1764609422450,0.00011714,84766.0,84765.0,0.08879004]
[1764609422794,0.00011714,84766.0,84765.0,0.08679004]
[1764609423020,0.00011714,84766.0,84765.0,0.14931303]
[1764609423386,0.00011714,84766.0,84765.0,0.15031303]
[1764609423569,0.00011714,84766.0,84765.0,0.0762947]
[1764609423773,0.00011714,84766.0,84765.0,0.10659004]
[1764609423956,0.00011714,84766.0,84765.0,0.10959004]
[1764609424159,0.00011714,84766.0,84765.0,0.03129534]
[1764609424459,0.00011714,84766.0,84765.0,0.03529534]
[1764609424903,0.00011714,84766.0,84748.0,0.01179968]
[1764609425058,0.00011714,84766.0,84765.0,0.002]
[1764609425256,0.00011714,84766.0,84765.0,0.003]
[1764609425703,0.00011714,84766.0,84765.0,0.002]
[1764609425907,0.40851835,84778.0,84765.0,0.002]
[1764609426111,0.35874924,84779.0,84756.0,0.11104617]
[1764609426112,0.23592234,84774.0,84756.0,0.11104617]
[1764609426312,1.1280739,84773.0,84757.0,0.02990462]
[1764609426515,1.1398701,84773.0,84758.0,0.01149534]
[1764609426716,1.1280739,84773.0,84757.0,0.03059843]
[1764609427041,1.1280739,84780.0,84765.0,0.001]
[1764609427181,0.01179593,84775.0,84765.0,0.001]
[1764609427380,0.00117991,84766.0,84765.0,0.003]
[1764609427664,0.00117991,84766.0,84765.0,0.01249534]
[1764609427994,1.1280739,84780.0,84773.0,0.01149534]
[1764609428199,1.1280739,84780.0,84770.0,0.01149534]
[1764609428582,1.1280739,84780.0,84771.0,0.01149534]
[1764609428787,1.1280739,84780.0,84770.0,0.01149534]
[1764609430063,0.323,84789.0,84772.0,0.01179634]
[1764609430270,0.01179426,84787.0,84776.0,0.01149534]
[1764609430464,0.01179412,84788.0,84773.0,0.01149534]
[1764609430666,0.01179634,84772.0,84749.0,0.01179954]
[1764609430888,1.1280739,84770.0,84757.0,0.0188]
[1764609431093,0.01179565,84777.0,84758.0,0.02666929]
[1764609431292,1.1280739,84770.0,84758.0,0.02666929]
[1764609431509,1.1280739,84770.0,84757.0,0.0188]
[1764609431930,1.1280739,84770.0,84762.0,0.01149534]
[1764609432088,0.12284154,84779.0,84759.0,0.01149534]
[1764609432288,1.1280739,84770.0,84757.0,0.0188]
[1764609432624,1.1280739,84770.0,84757.0,0.03059843]
[1764609432824,1.1280739,84770.0,84758.0,0.0431562]
[1764609433086,1.1280739,84770.0,84759.0,0.01179815]
[1764609433313,1.1280739,84770.0,84759.0,0.26656042]
[1764609433484,1.1280739,84770.0,84759.0,0.03059815]
[1764609433628,1.1280739,84770.0,84760.0,0.01179801]
[1764609433842,1.1280739,84770.0,84761.0,0.09289123]
[1764609434269,1.1280739,84770.0,84765.0,0.01179732]
[1764609434472,0.00026212,84774.0,84765.0,0.01179732]
[1764609434849,0.00026212,84774.0,84766.0,0.01179718]
[1764609435057,0.00026212,84774.0,84771.0,0.01179648]
[1764609435298,0.00026212,84774.0,84773.0,0.23592417]
[1764609435519,0.00026212,84774.0,84773.0,0.31112814]
[1764609437015,0.03169535,84807.0,84805.0,0.23583515]
[1764609437193,0.0004,84810.0,84809.0,0.23582402]
[1764609437323,0.0004,84810.0,84809.0,0.24731936]
[1764609437529,0.0004,84810.0,84806.0,0.06596702]
[1764609437530,0.0004,84810.0,84806.0,0.04716702]
[1764609437754,0.0004,84810.0,84805.0,0.0188]
[1764609437954,0.0004,84810.0,84806.0,0.01179161]
[1764609438157,0.0004,84810.0,84805.0,0.0188]
[1764609438158,0.00051698,84810.0,84805.0,0.0188]
[1764609438361,0.00051698,84810.0,84809.0,0.01149534]
[1764609438757,0.00051698,84810.0,84808.0,0.23582475]
[1764609438974,0.00051698,84810.0,84809.0,0.08727125]
[1764609439216,0.00051698,84810.0,84809.0,0.24731936]
[1764609439538,0.00051698,84810.0,84809.0,0.62134701]
[1764609440124,0.00051698,84810.0,84809.0,0.63284235]
[1764609440661,0.00051698,84810.0,84809.0,0.63384235]
[1764609440864,0.00051698,84810.0,84809.0,0.59011936]
[1764609441064,0.00051698,84810.0,84809.0,0.70434532]
[1764609441267,0.00051698,84810.0,84809.0,0.44122596]
[1764609441524,0.00051698,84810.0,84807.0,0.01149534]
[1764609441747,0.00051698,84810.0,84794.0,0.01179328]
[1764609441962,0.00051698,84810.0,84809.0,0.004]
[1764609442283,0.00051698,84810.0,84809.0,0.01349534]
[1764609442605,0.00051698,84810.0,84809.0,0.002]
[1764609442805,0.00051698,84810.0,84809.0,0.07550366]
[1764609443015,0.00169597,84810.0,84809.0,0.30932768]
[1764609444490,0.00169597,84810.0,84809.0,0.31032768]
[1764609444707,0.00169597,84810.0,84809.0,0.06300832]
[1764609444916,0.00169597,84810.0,84809.0,0.0188]
[1764609445288,0.00169597,84810.0,84809.0,0.001]
[1764609445834,0.00169597,84810.0,84803.0,0.26643052]
[1764609446022,0.00051698,84810.0,84809.0,0.001]
[1764609447239,0.00051698,84810.0,84803.0,0.0188]
[1764609447422,0.00051698,84810.0,84809.0,0.001]
[1764609447826,0.00169597,84810.0,84809.0,0.001]
[1764609448197,0.01179147,84807.0,84781.0,0.02329043]
[1764609448444,0.11104617,84804.0,84803.0,0.001]
[1764609448853,0.11104617,84804.0,84775.0,0.0188]
[1764609448854,0.24766158,84794.0,84775.0,0.0188]
[1764609449003,0.011793,84796.0,84775.0,0.0188]
[1764609449004,0.011793,84796.0,84778.0,0.01149534]
[1764609449344,0.323,84800.0,84775.0,0.0188]
[1764609449535,0.57064217,84800.0,84775.0,0.0188]
[1764609449695,1.1280739,84790.0,84776.0,0.01179579]
[1764609449900,1.1280739,84790.0,84784.0,0.01149534]
[1764609450344,1.1280739,84790.0,84780.0,0.01149534]
[1764609450685,1.1280739,84790.0,84780.0,0.02329057]
[1764609450889,1.1280739,84790.0,84780.0,0.01149534]
[1764609451510,1.1280739,84790.0,84778.0,0.01179551]
[1764609451750,1.1280739,84790.0,84779.0,0.08390064]
[1764609452824,0.23588386,84788.0,84779.0,0.08390064]
[1764609453026,0.24770042,84780.0,84756.0,0.01179857]
[1764609453397,1.1280739,84766.0,84756.0,0.01179857]
[1764609453601,1.1280739,84766.0,84757.0,0.00656922]
[1764609453931,1.1280739,84766.0,84758.0,0.01179829]
[1764609454137,1.1280739,84766.0,84757.0,0.01806456]
[1764609454389,1.1280739,84766.0,84757.0,0.02998013]
[1764609454588,1.1280739,84766.0,84759.0,0.01179815]
[1764609455144,1.1280739,84766.0,84760.0,0.01179801]
[1764609455547,1.1280739,84770.0,84762.0,0.01179773]
[1764609455749,0.00026208,84782.0,84760.0,0.01179801]
[1764609455750,0.323,84779.0,84764.0,0.01149534]
[1764609456396,0.323,84779.0,84765.0,0.01179732]
[1764609456594,0.323,84779.0,84767.0,0.01149534]
[1764609456902,1.1280739,84780.0,84767.0,0.01149534]
[1764609457876,1.1280739,84780.0,84765.0,0.001]
[1764609457877,1.1280739,84780.0,84770.0,0.01149534]
[1764609459370,1.1280739,84780.0,84767.0,0.001]
[1764609459617,1.1280739,84780.0,84764.0,0.03029534]
[1764609459823,0.01205703,84782.0,84770.0,0.001]
[1764609459824,1.1280739,84774.0,84770.0,0.001]
[1764609459978,1.1280739,84780.0,84770.0,0.001]
[1764609460182,1.1280739,84780.0,84765.0,0.04008972]
[1764609460583,1.1280739,84780.0,84767.0,0.001]
[1764609460984,1.1280739,84780.0,84765.0,0.04008972]
[1764609461209,0.00026208,84782.0,84772.0,0.11104617]
[1764609461519,1.12833598,84782.0,84774.0,0.01149534]
[1764609461820,1.12833598,84782.0,84775.0,0.01149534]
[1764609462047,0.00026208,84782.0,84777.0,0.01179565]
[1764609462184,0.00026208,84782.0,84781.0,0.23590191]
[1764609462390,0.00026208,84782.0,84780.0,0.23590394]
[1764609462586,0.00026208,84782.0,84779.0,0.01179537]
[1764609462794,0.00026208,84782.0,84776.0,0.03029534]
[1764609462999,0.00026208,84782.0,84777.0,0.02828908]
[1764609463199,0.00026208,84782.0,84777.0,0.01649343]
[1764609463589,0.00026208,84782.0,84777.0,0.03529343]
[1764609464018,0.00026208,84782.0,84779.0,0.01149534]
[1764609464391,0.00026208,84782.0,84780.0,0.23590225]
[1764609464599,0.00026208,84782.0,84781.0,0.06584495]
[1764609465737,0.00026208,84782.0,84781.0,0.06684495]
[1764609466383,0.00026208,84782.0,84781.0,0.30274686]
[1764609466555,0.00026208,84782.0,84781.0,0.68826985]
[1764609466696,0.00026208,84782.0,84781.0,0.68926985]
[1764609467160,0.00026208,84782.0,84781.0,0.68826985]
[1764609467584,0.00026208,84782.0,84781.0,0.68926985]
[1764609467996,0.00026208,84782.0,84781.0,0.68826985]
[1764609468200,1e-08,84782.0,84781.0,0.68926985]
[1764609468432,0.0004,84810.0,84809.0,0.63284235]
[1764609468555,0.0004,84810.0,84809.0,0.72353722]
[1764609469544,0.0004,84810.0,84809.0,0.83458339]
[1764609469716,0.00051698,84810.0,84809.0,0.83658339]
[1764609470283,0.00051698,84810.0,84809.0,0.83458339]
[1764609470490,0.00051698,84810.0,84809.0,1.23658339]
[1764609471535,0.00051698,84810.0,84809.0,1.24158339]
[1764609471730,0.00051698,84810.0,84809.0,1.23458339]
[1764609472108,0.00051698,84810.0,84809.0,1.24158339]
[1764609472293,0.00051698,84810.0,84809.0,1.23658339]
[1764609472494,0.00051698,84810.0,84809.0,1.23958339]
[1764609472694,0.00051698,84810.0,84809.0,1.24158339]
[1764609473312,0.00051698,84810.0,84809.0,1.23958339]
[1764609473783,0.00051698,84810.0,84809.0,1.24158339]
[1764609474001,0.00051698,84810.0,84809.0,1.30483244]
[1764609474225,0.52952584,84850.0,84840.0,0.01149534]
[1764609474443,0.52952584,84850.0,84842.0,0.01149534]
[1764609474444,0.5299158,84850.0,84842.0,0.01149534]
[1764609474948,0.5299158,84850.0,84841.0,0.03768964]
[1764609475188,0.5299158,84850.0,84842.0,0.02328195]
[1764609475424,0.00038996,84850.0,84849.0,0.01149534]
[1764609475886,0.00038996,84850.0,84849.0,0.03739638]
[1764609475887,0.00261579,84850.0,84849.0,0.03739638]
[1764609476121,0.00261579,84850.0,84849.0,0.01149534]
[1764609476357,0.00261579,84850.0,84844.0,0.0188]
[1764609476600,0.00038996,84850.0,84844.0,0.0188]
[1764609476866,0.00206229,84845.0,84844.0,0.0188]
[1764609477109,0.00206229,84845.0,84841.0,0.02590289]
[1764609477368,0.00206229,84845.0,84835.0,0.0188]
[1764609477369,0.01178619,84845.0,84835.0,0.0188]
[1764609477640,0.23574136,84839.0,84815.0,0.01179036]
[1764609477896,0.23574136,84839.0,84811.0,0.323]
[1764609477897,0.67195555,84833.0,84820.0,0.0188]
[1764609478128,0.67195555,84833.0,84813.0,0.03029534]
[1764609478129,0.67195555,84830.0,84813.0,0.03029534]
[1764609478386,0.67195555,84823.0,84822.0,0.01149534]
[1764609478654,0.67195555,84832.0,84822.0,0.01149534]
[1764609479069,0.67195555,84832.0,84810.0,0.24761169]
[1764609479070,0.2475635,84827.0,84823.0,0.001]
[1764609479549,0.00038972,84827.0,84814.0,0.24759857]
[1764609479820,0.00038972,84827.0,84824.0,0.01149534]
[1764609480049,0.00038972,84827.0,84822.0,0.001]
[1764609481247,0.00038972,84827.0,84823.0,0.001]
[1764609481480,0.00038972,84827.0,84826.0,0.01149534]
[1764609482155,0.00038972,84827.0,84825.0,0.01876]
[1764609482438,0.23578483,84824.0,84822.0,0.001]
[1764609482648,0.23578483,84824.0,84786.0,0.01149534]
[1764609482649,0.01179175,84805.0,84786.0,0.01149534]
[1764609482845,0.67195555,84800.0,84788.0,0.11104617]
[1764609483041,0.00026205,84790.0,84789.0,0.01149534]
[1764609483280,0.00026205,84790.0,84789.0,0.04126044]
[1764609483522,0.00026205,84790.0,84789.0,0.05275578]
[1764609483972,0.00026205,84790.0,84789.0,0.43827877]
[1764609485000,0.00026205,84790.0,84789.0,0.84139575]
[1764609485215,0.00026205,84790.0,84789.0,1.0752754]
[1764609485407,0.00026205,84790.0,84789.0,1.14552445]
[1764609485536,0.00026205,84790.0,84789.0,1.0742754]
[1764609485729,0.00026205,84790.0,84789.0,1.0762754]
[1764609486960,0.00026205,84790.0,84789.0,1.0812754]
[1764609487168,0.00026205,84790.0,84789.0,1.0742754]
[1764609487371,0.00026205,84790.0,84789.0,1.0772754]
[1764609487582,0.00026205,84790.0,84789.0,1.0842754]
[1764609487805,0.00026205,84790.0,84789.0,1.0812754]
[1764609488131,0.00026205,84790.0,84789.0,1.0842754]
[1764609488551,0.67195555,84850.0,84836.0,0.01178744]
[1764609488755,0.67195555,84850.0,84843.0,0.01149534]
[1764609488960,0.01178425,84859.0,84843.0,0.01149534]
[1764609488961,0.323,84859.0,84843.0,0.01149534]
[1764609489151,0.57046942,84859.0,84843.0,0.01149534]
[1764609489346,0.67195555,84853.0,84837.0,0.11104617]
[1764609489552,0.67195555,84853.0,84843.0,0.01149534]
[1764609489771,0.67195555,84853.0,84837.0,0.11104617]
[1764609489772,0.67234551,84853.0,84838.0,0.01533818]
[1764609489972,0.01178522,84852.0,84832.0,0.01876]
[1764609490190,0.90804867,84853.0,84837.0,0.01149534]
[1764609490191,0.68413059,84853.0,84837.0,0.01149534]
[1764609490536,0.67234551,84853.0,84840.0,0.01149534]
[1764609491604,0.67234551,84853.0,84823.0,0.01178925]
[1764609491605,0.01178578,84848.0,84823.0,0.01178925]
[1764609491815,0.67195555,84844.0,84828.0,0.01178856]
[1764609492041,0.67195555,84844.0,84830.0,0.01149534]
[1764609492251,0.68374188,84844.0,84828.0,0.01149534]
[1764609492455,0.67195555,84844.0,84828.0,0.01149534]
[1764609492662,0.67195555,84844.0,84829.0,0.04011559]
[1764609493929,0.0004,84870.0,84852.0,0.23570452]
[1764609494139,0.0004,84870.0,84867.0,0.01178314]
[1764609494342,0.00051034,84870.0,84869.0,0.01149534]
[1764609494662,0.00051034,84870.0,84869.0,0.04044755]
[1764609494822,0.66866589,84900.0,84885.0,0.01178064]
[1764609495040,0.67206581,84900.0,84885.0,0.01149534]
[1764609495223,0.00011026,84900.0,84884.0,0.01178078]
[1764609495473,0.67206581,84900.0,84885.0,0.01149534]
[1764609495646,0.67206581,84900.0,84886.0,0.026592]
[1764609495849,0.01177953,84893.0,84868.0,0.011783]
[1764609496061,0.01177953,84893.0,84871.0,0.0188]
[1764609496062,0.67195555,84880.0,84871.0,0.0188]
[1764609496675,0.67195555,84880.0,84869.0,0.001]
[1764609496849,0.67195555,84880.0,84868.0,0.0188]
[1764609497275,0.67195555,84880.0,84869.0,0.01178286]
[1764609497455,0.67195555,84880.0,84871.0,0.01249534]
[1764609497685,0.67195555,84880.0,84871.0,0.001]
[1764609497876,0.67195555,84880.0,84871.0,0.01149534]
[1764609498274,0.67195555,84880.0,84868.0,0.002]
[1764609498478,0.01178217,84874.0,84868.0,0.002]
[1764609498696,0.12282764,84879.0,84868.0,0.002]
[1764609498908,0.01178189,84876.0,84868.0,0.002]
[1764609499139,0.23565453,84870.0,84868.0,0.001]
[1764609499538,0.03058189,84876.0,84844.0,0.01149534]
[1764609499539,0.01178425,84859.0,84844.0,0.01149534]
[1764609499749,0.01178411,84860.0,84844.0,0.00038996]
[1764609499750,0.67195555,84850.0,84844.0,0.00038996]
[1764609499966,0.67195555,84850.0,84844.0,0.01274511]
[1764609500168,0.67195555,84850.0,84844.0,0.00038996]
[1764609500576,0.67195555,84850.0,84844.0,0.00138996]
[1764609501335,0.67195555,84850.0,84844.0,0.00038996]
[1764609501541,0.67195555,84850.0,84844.0,0.00138996]
[1764609502313,0.67195555,84850.0,84849.0,0.01149534]
[1764609502718,0.67195555,84850.0,84845.0,0.01149534]
[1764609502917,0.67195555,84850.0,84844.0,0.00338996]
[1764609503095,0.67195555,84850.0,84844.0,0.00138996]
[1764609503280,0.67195555,84850.0,84844.0,0.00038996]
[1764609503469,0.67195555,84850.0,84849.0,0.003]
[1764609503817,0.67195555,84859.0,84849.0,0.001]
[1764609504037,0.67195555,84859.0,84844.0,0.00038996]
[1764609504038,0.67195555,84859.0,84853.0,0.01149534]
[1764609504987,0.67195555,84859.0,84857.0,0.01149534]
[1764609505241,0.23566634,84866.0,84857.0,0.01149534]
[1764609505468,0.57044057,84869.0,84856.0,0.01149534]
[1764609505667,0.11104617,84866.0,84856.0,0.01149534]
[1764609506098,0.11104617,84866.0,84853.0,0.001]
[1764609506099,0.69075555,84870.0,84855.0,0.01149534]
[1764609506305,0.69075555,84870.0,84853.0,0.001]
[1764609506306,0.69075555,84870.0,84866.0,0.01149534]
[1764609506515,0.011783,84868.0,84856.0,0.02717735]
[1764609506837,0.68373883,84866.0,84841.0,0.01178675]
[1764609507055,0.68373883,84866.0,84840.0,0.01178689]
[1764609507056,0.67195555,84860.0,84849.0,0.01349534]
[1764609507272,0.67195555,84860.0,84849.0,0.01149534]
[1764609507744,0.01178508,84853.0,84826.0,0.01178883]
[1764609507971,0.01178508,84853.0,84825.0,0.06316168]
[1764609507972,0.24750537,84847.0,84820.0,0.24758271]
[1764609508199,0.24750537,84847.0,84818.0,0.01178995]
[1764609508200,0.23572396,84845.0,84825.0,0.01876]
[1764609508847,0.323,84852.0,84825.0,0.01876]
[1764609509082,0.23572396,84845.0,84844.0,0.00238996]
[1764609509529,0.23572396,84845.0,84844.0,0.00038996]
[1764609509747,0.55872396,84845.0,84844.0,0.00338996]
[1764609510218,0.55872396,84845.0,84844.0,0.00238996]
[1764609510665,0.55872396,84845.0,84844.0,0.00338996]
[1764609510868,0.57721565,84845.0,84844.0,0.00338996]
[1764609511189,0.57901597,84845.0,84844.0,0.00338996]
[1764609511388,0.57901597,84845.0,84844.0,0.00138996]
[1764609511613,0.57901597,84845.0,84844.0,0.00038996]
[1764609511818,0.59781597,84845.0,84844.0,0.00138996]
[1764609512105,0.59781597,84845.0,84844.0,0.00038996]
[1764609512304,2.59781597,84845.0,84844.0,0.00038996]
[1764609514672,0.59781597,84845.0,84844.0,0.00038996]
[1764609514970,2.59781597,84845.0,84844.0,0.00038996]
[1764609515986,0.34329201,84845.0,84844.0,0.00038996]
[1764609516190,0.25628428,84845.0,84844.0,0.00038996]
[1764609516389,0.00180032,84845.0,84844.0,0.00038996]
[1764609518301,0.00180032,84845.0,84844.0,0.02750989]
[1764609518503,0.00180032,84845.0,84844.0,0.2361167]
[1764609518701,0.00180032,84845.0,84844.0,0.24761204]
[1764609519478,0.00180032,84845.0,84844.0,0.0118853]
[1764609519696,0.00180032,84845.0,84844.0,0.0128853]
[1764609520719,0.00180032,84845.0,84844.0,0.00438996]
[1764609521126,0.23568531,84859.0,84844.0,0.00038996]
[1764609521409,0.45896624,84860.0,84848.0,0.01149534]
[1764609521548,0.45896624,84860.0,84844.0,0.00138996]
[1764609521746,0.70643275,84860.0,84844.0,0.00138996]
[1764609521988,0.00026176,84853.0,84845.0,0.02724859]
[1764609522495,0.00026176,84853.0,84848.0,0.01149534]
[1764609523076,0.00026176,84853.0,84845.0,0.02824859]
[1764609523246,0.00026176,84853.0,84848.0,0.01149534]
[1764609523913,0.00026176,84853.0,84845.0,0.02824859]
[1764609524065,0.00026176,84853.0,84847.0,0.01149534]
[1764609524268,0.00026176,84853.0,84845.0,0.002]
[1764609524269,0.00026176,84853.0,84845.0,0.001]
[1764609524449,0.00026176,84853.0,84848.0,0.001]
[1764609524850,0.01178592,84847.0,84844.0,0.00038996]
[1764609525091,0.00026176,84853.0,84847.0,0.001]
[1764609525285,0.00026176,84853.0,84848.0,0.001]
[1764609526439,0.00026176,84853.0,84848.0,0.01249534]
[1764609526942,0.00026176,84853.0,84848.0,0.01149534]
[1764609527258,0.00026176,84853.0,84847.0,0.001]
[1764609527490,0.00026176,84853.0,84848.0,0.01249534]
[1764609527789,0.00026176,84853.0,84848.0,0.01349534]
[1764609527963,0.00026176,84853.0,84848.0,0.01149534]
[1764609528395,0.00026176,84853.0,84848.0,0.01349534]
[1764609528557,0.00026176,84853.0,84852.0,0.01149534]
[1764609528767,0.00026176,84853.0,84847.0,0.01149534]
[1764609528922,0.00026176,84853.0,84851.0,0.01149534]